{"text_format":"1","workbook":"xlsx","n_sheets":2,"sheets":[" Réponse par nunéro","Réponse à écrire"],"not_rendered":{"charts":0,"images":2,"macros":1,"external_links":0,"defined_names":1,"comments":0,"pivot_tables":0},"unopened":[],"bounds":{"document_bytes":16777216,"sheet_cells":100000,"rows_first":2000,"rows_last":500,"rows_between":2000,"halvings":0,"cell_chars":16384,"cell_head_chars":4096},"cells_cut":0,"cells_raw":0,"read":"whole","date_system":"1900"}

{"sheet":" Réponse par nunéro","index":0,"n_rows":62,"n_cols":48,"rows_kept":62,"cut":false,"hidden":false,"merged":[[27,0,27,1],[28,0,28,1],[21,16,21,17],[26,0,26,1],[10,42,10,47],[22,4,22,12],[23,4,23,12],[24,4,24,12],[6,21,6,25],[6,27,6,31],[10,35,10,40],[26,14,26,15],[2,18,8,18],[19,18,21,18],[2,2,2,14],[17,4,17,12],[18,4,18,12],[19,4,19,12],[20,4,20,12],[21,4,21,12],[15,4,15,12],[16,4,16,12]]}
[]
[null,null,null,null,null,null,null,null,null,null,null,null,null,null,null,null,null,null,{"$f":"IF(D5=1,\"Concours 'Jean-Louis'\",\"\")","v":"Concours 'Jean-Louis'"}]
[null,null,"Jean-Louis",null,null,null,null,null,null,null,null,null,null,null,null,null,null,null,{"$f":"IF(D5=1,\"Dégustez cinq verres de chasselas vaudois et identifiez la région viticole d’origine de chacun. Sur ce modèle, testez votre orthographe en jouant avec les homonymes (dès la question no 2).\",\"\")","v":"Dégustez cinq verres de chasselas vaudois et identifiez la région viticole d’origine de chacun. Sur ce modèle, testez votre orthographe en jouant avec les homonymes (dès la question no 2)."}]
[]
[null,null,"No",1,null,null,null,null,null,null,null,null,null,null,null,{"$f":"IF(HOUR(NOW())+D5>55,HOUR(NOW())+D5-54,HOUR(NOW())+D5)","v":24}]
[]
[null,null,null,null,null,null,null,null,null,null,null,null,null,null,null,null,null,null,null,null,null,"Mots",null,null,null,null,null,"Définitions"]
[null,null,null,null,null,null,null,null,null,null,null,null,null,null,null,null,null,null,null,null,null,1,2,3,4,5,null,1,2,3,4,5]
[]
[null,null,null,null,{"$f":"VLOOKUP($D$5,$U$11:$AF$60,VLOOKUP($P$5,$AJ$12:$AO$62,2)+1)","v":"La Cote"},null,{"$f":"VLOOKUP($D$5,$U$11:$AF$60,VLOOKUP($P$5,$AJ$12:$AO$62,3)+1)","v":"Lavaux"},null,{"$f":"VLOOKUP($D$5,$U$11:$AF$60,VLOOKUP($P$5,$AJ$12:$AO$62,4)+1)","v":"Bonvillars"},null,{"$f":"VLOOKUP($D$5,$U$11:$AF$60,VLOOKUP($P$5,$AJ$12:$AO$62,5)+1)","v":"Chablais"},null,{"$f":"VLOOKUP($D$5,$U$11:$AF$60,VLOOKUP($P$5,$AJ$12:$AO$62,6)+1)","v":"Dézaley"}]
[null,null,null,null,null,null,null,null,null,null,null,null,null,null,null,null,null,null,null,null,1,"Bonvillars","La Cote","Lavaux","Dézaley","Chablais",1,"Joli fruité, goût de pomme verte, sec, léger et bien équilibré","Arôme de pamplemousse, vineux, friand avec une légère amertume","Elégant avec un fruité assez discret, sec et amertume finale","Très fin et souple, encore fermé, gras en bouche","Très floral au nez, fin et flatteur en bouche, rond et bien ouvert",null,null,null,"Tirage",null,null,null,null,null,null,"juste"]
[null,null,null,null,null,null,null,null,null,null,null,null,null,null,null,null,null,null,null,null,2,"Ver","Vert","Verre","Vair","Vers",2,"Animal invertébré de forme allongée, au corps mou, dépourvu de membres","Couleur","Matière transparente à base de silicates","Fourrure blanche et grise de certains écureuils","Assemblages de mots mesurés ou cadencés selon certaines règles",null,null,null,1,1,2,3,4,5,null,1,1,2,3,4,5]
[null,null,null,"mot",1,null,2,null,3,null,4,null,5,null,null,null,null,null,null,null,3,"Pré (n. mas)","Prêt (n. mas)","Prêt (adj.)","Près","Pré",3,"Terre où l'on récolte du fourrage","Action par laquelle on transmet à quelqu'un la jouissance d'une chose","Qui est en état de faire quelque chose","A peu de distance","Préfixe exprimant une idée d'antériorité",null,null,null,2,2,1,3,5,4,null,2,2,1,3,5,4]
[null,null,null,null,null,null,null,null,null,null,null,null,null,null,null,null,null,null,null,null,4,"Pair","Paire","Pers","Perd","Père",4,"Egal d'une personne - Grand vassal du roi","Groupe de deux objets semblables destinés à un emploi simultané","De couleur intermédiaire entre le vert et le bleu","Troisième personne du présent de l'indicatif d'un verbe","Celui qui a un ou plusieurs enfants",null,null,null,3,5,4,1,2,3,null,3,3,4,5,2,1]
[null,null,null,null,null,null,null,null,null,null,null,null,null,null,"no mot :",null,null,null,null,null,5,"Cour","Court","Cours","Courre","Coure",5,"Espace découvert et clos faisant partie d'un ensemble de bâtiments","Terrain où l'on joue au tennis","Mouvement naturel de l'eau qui s'écoule","Poursuivre un gibier","Subjonctif présent, première personne singulier du verbe courir",null,null,null,4,2,3,4,1,5,null,4,4,1,2,3,5]
[null,null,"Définition 1",null,{"$f":"VLOOKUP($D$5,$AA$11:$AF$60,2)","v":"Joli fruité, goût de pomme verte, sec, léger et bien équilibré"},null,null,null,null,null,null,null,null,null,null,null,{"$f":"IF(O16=VLOOKUP($P$5,$AQ$12:$AV$62,2),\"v\",\"x\")","v":"x"},null,null,null,6,"Penne","Pêne","Peine","Panser","Penser",6,"Plume longue et résistante des ailes et de la queue des oiseaux","Verrou, partie d'une serrure","Châtiment, punition, souffrance","Nettoyer une plaie et la protéger","Avoir une opinion, réfléchir",null,null,null,5,3,4,2,5,1,null,5,5,3,1,2,4]
[null,null,"Définition 2",null,{"$f":"VLOOKUP($D$5,$AA$11:$AF$60,3)","v":"Arôme de pamplemousse, vineux, friand avec une légère amertume"},null,null,null,null,null,null,null,null,null,null,null,{"$f":"IF(O17=VLOOKUP($P$5,$AQ$12:$AV$62,3),\"v\",\"x\")","v":"x"},null,null,null,7,"Accord","Accort","Accore","Accords","A corps perdu",7,"Union des esprits et des sentiments - Union harmonieuse de sons","Enjoué, gracieux et sans gaucherie","Pièce de bois dont on étaye un navire en construction","Conventions entre Etats ou particuliers","Avec une impétuosité téméraire",null,null,null,7,4,2,5,3,1,null,7,5,2,4,1,3]
[null,null,"Définition 3",null,{"$f":"VLOOKUP($D$5,$AA$11:$AF$60,4)","v":"Elégant avec un fruité assez discret, sec et amertume finale"},null,null,null,null,null,null,null,null,null,null,null,{"$f":"IF(O18=VLOOKUP($P$5,$AQ$12:$AV$62,4),\"v\",\"x\")","v":"x"},null,null,null,8,"Are","Art","Ars","Arrhes","Hart",8,"Unité de mesure valant un décamètre carré","Application d'un ensemble de connaissances  une réalisation pratique","Pli à la réunion de la poitrine et du membre antérieur du cheval","Ce qui est donné comme gage, comme avance sur l'exécution d'un marché","Lien de bois dont on lie les fagots - Corde qui servait à la pendaison",null,null,null,9,4,3,5,1,2,null,9,4,5,2,1,3]
[null,null,"Définition 4",null,{"$f":"VLOOKUP($D$5,$AA$11:$AF$60,5)","v":"Très fin et souple, encore fermé, gras en bouche"},null,null,null,null,null,null,null,null,null,null,null,{"$f":"IF(O19=VLOOKUP($P$5,$AQ$12:$AV$62,5),\"v\",\"x\")","v":"x"},null,null,null,9,"Sain","Saint","Seing","Sein","Ceins",9,"Dont l'organisme est en bon état","Essentiellement pur et parfait, en parlant de Dieu","Signature qui rend un acte valable","Partie antérieure de la poitrine humaine","Première personne du présent d'un verbe synonyme de \"entourer\"",null,null,null,11,3,5,4,2,1,null,11,5,4,1,3,2]
[null,null,"Définition 5",null,{"$f":"VLOOKUP($D$5,$AA$11:$AF$60,6)","v":"Très floral au nez, fin et flatteur en bouche, rond et bien ouvert"},null,null,null,null,null,null,null,null,null,null,null,{"$f":"IF(O20=VLOOKUP($P$5,$AQ$12:$AV$62,6),\"v\",\"x\")","v":"x"},null,{"$f":"IF(D5<5,\"5 bonnes réponses donnent droit à un Diplôme.  Avec 1 inversion vous  obtiendrez un Certificat.\",\"\")","v":"5 bonnes réponses donnent droit à un Diplôme.  Avec 1 inversion vous  obtiendrez un Certificat."},null,10,"Cent","Cens","Sens","Sang","Sans",10,"Nombre qui vaut 10 x 10","Redevance en argent payée au seigneur, au Moyen Age","Faculté de percevoir l'impression des objets extérieurs","Liquide rouge qui circule dans les artères et les veines","Marque l'absence, la privation, l'exclusion",null,null,null,13,5,2,1,4,3,null,13,3,2,5,4,1]
[null,null,null,null,null,null,null,null,null,null,null,null,null,null,null,null,null,null,null,null,11,"Serf","Serres","Serre","Sers","Cerf",11,"Qui vivait attaché au seigneur et à sa terre","Pieds armés de griffes des oiseaux de proie","Lieu clos et vitré où l'on abrite les végétaux","Première personne du présent du verbe servir","Mammifère ruminant dont la tête du mâle porte des bois",null,null,null,14,4,1,5,3,2,null,14,2,5,4,1,3]
[null,null,null,null,null,null,null,null,null,null,null,null,null,null,null,null,null,null,null,null,12,"Saut","Sceau","Seaux","Sot","Seau",12,"Mouvement brusque d'extension par lequel le corps se projette en haut","Cachet gravé dont on fait des empreintes avec de la cire sur des lettres","Récipients de bois ou de métal, munis d'une anse","Personne sans esprit, sans jugement","Contenu d'un récipient",null,null,null,15,2,5,1,4,3,null,15,3,1,5,4,2]
[null,null,null,null,null,null,null,null,null,null,null,null,null,null,null,null,null,null,null,null,13,"Aire","Air","Hère","Erre","Ere",13,"Superficie d'une figure géométrique","Fluide gazeux enveloppant la Terre","Jeune cerf d'un an","Manière de marcher, allure","Epoque  à partir de laquelle on commence à compter les années",null,null,null,16,4,2,3,5,1,null,16,5,2,3,1,4]
[null,null,null,null,null,null,null,null,null,null,null,null,null,null,null,null,null,null,null,null,14,"Hère","Erres","Haire","Ers","Air",14,"Homme sans mérite, sans fortune","Voies du cerf - Tenir la même conduite que…","Vêtement de crin porté sur la peau pour se mortifier","Légumineuse fourragère du type lentille","Suite de sons musicaux",null,null,null,17,1,4,3,5,2,null,17,1,5,3,2,4]
[null,null,null,null,null,null,null,null,null,null,null,null,null,null,{"$f":"nb§","v":{"$error":"#NAME?"}},null,null,null,null,null,15,"Dais","Dé","Des","Dès","Dey",15,"Baldaquin au-dessus d'un autel, d'un trône","Petit cube qui sert à jouer","Article indéfini, pluriel de ou de une","Préposition marquant le temps ou le lieu","Chef de la milice turque",null,null,null,18,3,5,4,1,2,null,18,4,5,1,3,2]
[null,null,null,null,null,null,null,null,null,null,null,null,null,null,{"$f":"COUNTA(O16:O20)","v":0},null,null,null,null,null,16,"Jet","Geai","Jais","J'ai","Gai",16,"Un lancé - Une émission vive d'un liquide","Passereaux insectivore","Pierre noire et brillante dont on fait des bijoux","Première personne du singulier du présent d'un auxiliaire","Qui marque ou inspire la gaieté",null,null,null,19,4,1,3,2,5,null,19,2,4,3,1,5]
["Corrections :",null,null,null,null,null,null,null,null,null,null,null,null,null,{"$f":"IF(COUNTIF(Q16:Q20,\"v\")=5,\"Diplôme\",IF(COUNTIF(Q16:Q20,\"v\")=3,\"Certificat\",\"\"))","v":""},null,null,null,null,null,17,"Quant","Quand","Cant","Kan","Camp",17,"Locution. Signifie \"pour ce qui est de, en ce qui concerne\"","A quel moment ?","Face la moins large d'une pièce de bois","Marché des caravanes dans l'Asie occidentale","Espace où une armée dresse ses tentes",null,null,null,20,1,5,2,3,4,null,20,1,3,4,5,2]
["Diplômes :",null,0,null,null,null,null,null,null,null,null,null,null,null,null,null,null,null,null,null,18,"Bai","Baies","Bée","Baie","Bey",18,"Rouge brun, en parlant de la robe d'un cheval","Fruits charnus dépourvus de noyau","Ce dit d'une bouche ouverte d'étonnement","Large ouverture pratiquée dans un mur, servant de fenêtre","Chez les turcs, gouverneur de province",null,null,null,21,5,1,3,2,4,null,21,2,4,3,5,1]
["Certificats :",null,0,null,null,null,null,null,null,null,null,null,null,null,null,null,null,null,null,null,19,"Bayer","Baîller","Bailler","Bail","Baille",19,"Etre grand ouvert - distrait - ??? Aux corneilles","Faire une inspiration profonde suivie d'une expiration prolongée","Donner, remettre, fournir des fonds","Contrat par lequel une personne cède la jouissance d'un bien","Sorte de baquet, cuve de bois",null,null,null,22,3,5,4,2,1,null,22,5,4,1,3,2]
[null,null,null,null,null,null,null,null,null,null,null,null,null,null,null,null,null,null,null,null,20,"Laie","Laid","Lait","Lais","Lai",20,"Femelle du sanglier","Désagréable à voir","Liquide blanc et opaque pour nourrir les petits mammifères","Alluvions que les eaux abandonnent sur les rives","Petit poème en octosyllabes, narratif ou lyrique",null,null,null,23,1,4,5,3,2,null,23,1,5,4,2,3]
[null,null,null,null,null,null,null,null,null,null,null,null,null,null,null,null,null,null,null,null,21,"Laie","Laid","Lais","Lai","Lé",21,"Route étroite percée dans une forêt, une futaie","Contraire à la bienséance","Jeune arbre qu'on laisse quand on coupe le taillis","Qui n'est pas destiné aux ordres sacrés","Largeur d'une étoffe",null,null,null,24,2,3,1,5,4,null,24,3,1,2,5,4]
[null,null,null,null,null,null,null,null,null,null,null,null,null,null,null,null,null,null,null,null,22,"Autan","Autant","Otan","Otant","Au temps",22,"Vent d'est chaud et sec, parfois violent","Marque un rapport d'égalité","Organisation du Traité de l'Atlantique Nord","Retirant - Enlevant un vêtement","Jadis, autrefois",null,null,null,25,2,3,5,1,4,null,25,4,1,2,5,3]
[null,null,null,null,null,null,null,null,null,null,null,null,null,null,null,null,null,null,null,null,23,"Mite","Mitre","Mythe","Myrte","Myrrhe",23,"Insecte qui ronge le papier, la laine, la fourrure","Coiffure des évêques","Récit fabuleux destiné à expliquer des faits présents","Arbrisseau ornemental","Gomme-résine aromatique utilisée en parfumerie",null,null,null,26,2,1,4,5,3,null,26,2,1,5,3,4]
[null,null,null,null,null,null,null,null,null,null,null,null,null,null,null,null,null,null,null,null,24,"Frète","Frette","Frais","Frai","Fraye",24,"Je loue un véhicule","Cercle de métal ajusté autour d'un tube pour le renforcer","Dépenses occasionnées par quelque chose","Epoque de reproduction chez les poissons","Je fréquente des personnes louches",null,null,null,27,3,2,5,4,1,null,27,5,2,1,4,3]
[null,null,null,null,null,null,null,null,null,null,null,null,null,null,null,null,null,null,null,null,25,"Court","Coure","Cour","Cours (péda.)","Cours (éco.)",25,"De peu de longueur","Il faut que je marche très, très vite…","Dénomination de certains tribunaux importants","Ensemble de leçons sur un même sujet","Prix de vente d'une valeur en bourse,  d'une monnaie",null,null,null,28,2,3,4,1,5,null,28,4,1,2,3,5]
[null,null,null,null,null,null,null,null,null,null,null,null,null,null,null,null,null,null,null,null,26,"Cote","Côte","Cotte","Côtes","Quote-part",26,"Liste des prix des monnaies","Zone continentale en contact avec la mer","Pantalon de toile bleue portée par les ouvriers","Os allongés qui forment la cage thoracique","Part que chacun doit payer ou recevoir lors d'un partage",null,null,null,29,4,5,1,3,2,null,29,3,5,4,1,2]
[null,null,null,null,null,null,null,null,null,null,null,null,null,null,null,null,null,null,null,null,27,"Balai","Ballet","Balais","Palais","Palet",27,"Assemblage de crin au bout d'un bâton pour le nettoyage","Danse exécutée par plusieurs personnes sur un théâtre","Variété de rubis rose","Partie supérieure de la cavité buccale","Pierre plate avec laquelle on joue en la lançant près du but",null,null,null,30,4,1,5,2,3,null,30,2,4,5,1,3]
[null,null,null,null,null,null,null,null,null,null,null,null,null,null,null,null,null,null,null,null,28,"Fond","Fonds (sing)","Fonts","Font","Fonds (plur)",28,"Endroit le plus bas d'une chose creuse","Ensemble de biens immobiliers","Grand bassin qui contient l'eau du baptême","Verbe faire à la 3e personne du pluriel et au présent","Somme d'argent réservée à tel usage",null,null,null,31,2,1,3,5,4,null,31,2,1,3,5,4]
[null,null,null,null,null,null,null,null,null,null,null,null,null,null,null,null,null,null,null,null,29,"Pan","Pans","Paon","Pend","Pent",29,"Partie d'un vêtement, d'une étoffe","Parties verticales d'une construction","Gallinacé aux magnifiques couleurs","Fixer à un point élevé (3e personne du présent)","Préfixe tiré du grec, indiquant cinq",null,null,null,32,5,4,1,2,3,null,32,3,4,5,2,1]
[null,null,null,null,null,null,null,null,null,null,null,null,null,null,null,null,null,null,null,null,30,"Ris","Ri","Rît","Riz","Rit",30,"Glande comestible de la base du cou du veau","Participe passé du verbe rire","Subjonctif imparfait du verbe rire","Graminée cultivée dans l'eau pour ses graines alimentaires","Ordre prescrit des cérémonies d'une religion",null,null,null,33,2,3,4,1,5,null,33,4,1,2,3,5]
["© Y. Péguiron - Infodidac.ch - version 29.03.2026",null,null,null,null,null,null,null,null,null,null,null,null,null,null,null,null,null,null,null,31,"Chair","Chaire","Chère","Chers","Cher",31,"Substance fibreuse entre la peau et les os","Tribune du prédicateur dans une église","Ce qu'on sert à un repas","Personnes, être très aimés","Qui coûte beaucoup",null,null,null,34,3,4,2,5,1,null,34,5,3,1,2,4]
[null,null,null,null,null,null,null,null,null,null,null,null,null,null,null,null,null,null,null,null,32,"Van","Vent","Wan","Vanter","Venter",32,"Panier à anses servant à vanner le grain","Mouvement d'une masse d'air","Monnaie de la Corée","Faire l'éloge","Souffler",null,null,null,35,4,2,5,3,1,null,35,5,2,4,1,3]
[null,null,null,null,null,null,null,null,null,null,null,null,null,null,null,null,null,null,null,null,33,"Vin","Vingt","Vaincs","Vins","Vain",33,"Jus de raisin fermenté","2 x 10","Tu remportes un avantage décisif sur l'ennemi","Passé simple du verbe venir, 1er personne sing.","Sans résultat, frivole",null,null,null,36,4,3,5,1,2,null,36,4,5,2,1,3]
[null,null,null,null,null,null,null,null,null,null,null,null,null,null,null,null,null,null,null,null,34,"Rai","Raie","Ré","Rez","Rets",34,"Pièce reliant le moyeu d'une roue à la jante - Rayon de lumière","Ligne en creux - Poisson plat","Deuxième note de la gamme d'ut","Partie d'un immeuble qui est au niveau du terrain","Filets pour prendre des oiseaux, des poissons - Piège",null,null,null,37,3,5,4,2,1,null,37,5,4,1,3,2]
[null,null,null,null,null,null,null,null,null,null,null,null,null,null,null,null,null,null,null,null,35,"Vis","Visse","Vice","Vice-","Vis n.f.",35,"1ère personne de l'indicatif passé du verbe voir","Je ferme en tournant","Disposition à agir contre la morale","Indique une fonction de suppléant au titulaire","Tige cylindrique à tête aplatie",null,null,null,38,5,2,1,4,3,null,38,3,2,5,4,1]
[null,null,null,null,null,null,null,null,null,null,null,null,null,null,null,null,null,null,null,null,36,"Thon","Tond","Ton n.m.","Tonne","Ton adv.",36,"Poisson marin","Il coupe à ras","Qualité sonore d'une voix","Unité de mesure valant 1000 kg","Qui est à toi",null,null,null,39,4,1,5,3,2,null,39,2,5,4,1,3]
[null,null,null,null,null,null,null,null,null,null,null,null,null,null,null,null,null,null,null,null,37,"Tête","Tète","Têt","Tette","Thète",37,"Partie supérieure de qqch.","Il suce le lait de la mamelle","Récipient en terre réfractaire utilisé en laboratoire","Bout de la mamelle des animaux","Manoeuvre au temps des grecs",null,null,null,40,2,5,1,4,3,null,40,3,1,5,4,2]
[null,null,null,null,null,null,null,null,null,null,null,null,null,null,null,null,null,null,null,null,38,"Trais","Très","Trait","Traits","Traite",38,"Je tire le lait des mamelles","Indique l'intensité absolue d'un adj., d'un adv.","Corde avec laquelle un animal attelé tire sa charge","Lignes tracées sur une surface quelconque","Etendue de chemin qu'on parcourt sans s'arrêter",null,null,null,41,4,2,3,5,1,null,41,5,2,3,1,4]
[null,null,null,null,null,null,null,null,null,null,null,null,null,null,null,null,null,null,null,null,39,"Thym","Tin","Tain","Teint","Teins",39,"Plante vivace utilisée comme aromate","Bois qui soutient un navire en construction","Amalgame utilisé dans la fabrication des glaces","Coloris du visage","J'imprègne d'une substance colorante",null,null,null,42,1,4,3,5,2,null,42,1,5,3,2,4]
[null,null,null,null,null,null,null,null,null,null,null,null,null,null,null,null,null,null,null,null,40,"Fors","For","Fort","Forts","Fore",40,"Hors, excepté","Tribunal","Qui a beaucoup de force","Ouvrages de fortification","Je perce avec un foret",null,null,null,43,3,5,4,1,2,null,43,4,5,1,3,2]
[null,null,null,null,null,null,null,null,null,null,null,null,null,null,null,null,null,null,null,null,41,"Foi","Fois","Foie","Foix","Foies",41,"Fait de croire quelqu'un","Multiplication d'une quantité","Organe contenu dans la partie supérieure droite de l’abdomen","Ville de France, chef-lieu du département de l’Ariège, sur l’Ariège","On les a quand on a peur",null,null,null,44,4,1,3,2,5,null,44,2,4,3,1,5]
[null,null,null,null,null,null,null,null,null,null,null,null,null,null,null,null,null,null,null,null,42,"Mai","Mais","Mes","Mets","Met",42,"Le cinquième mois  de l’année","Conjonction de coordination","Qui appartient ou est lié à moi","Aliment cuisiné","Troisième personne du singulier du verbe mettre au présent de l'indicatif",null,null,null,45,1,5,2,3,4,null,45,1,3,4,5,2]
[null,null,null,null,null,null,null,null,null,null,null,null,null,null,null,null,null,null,null,null,43,"Croit","Croix","Croîts","Croie","Croît",43,"Verbe croire à la troisième personne au présent  de l'indicatif","Instrument de supplice composé d’un poteau et d’une traverse de bois","Augmentations de la population d’un cheptel par les naissances annuelles","Verbe croire à la première personne au présent du subjonctif","Il grandit de façon naturelle",null,null,null,46,5,1,3,2,4,null,46,2,4,3,5,1]
[null,null,null,null,null,null,null,null,null,null,null,null,null,null,null,null,null,null,null,null,44,"Maire","Mère","Mer","Mér","Mehr",44,"Personne qui dirige l’administration d’une ville","Femme qui a mis au monde un ou des enfants","Immense étendue d’eau salée","Préfixe indiquant une division ","Mot allemand signifiant principalement « plus » ou « davantage » ",null,null,null,47,3,5,4,2,1,null,47,5,4,1,3,2]
[null,null,null,null,null,null,null,null,null,null,null,null,null,null,null,null,null,null,null,null,45,"Reine","Renne","Raine","Rêne","Rennes",45,"Souveraine. Femme d’un roi","Mammifère ruminant de grande taille, au museau velu","Je fais des rainures","Courroie fixée au mors du cheval et servant à le diriger","Ville de France de la région de la Bretagne",null,null,null,48,1,4,5,3,2,null,48,1,5,4,2,3]
[null,null,null,null,null,null,null,null,null,null,null,null,null,null,null,null,null,null,null,null,46,{"$f":"\" \"","v":" "},{"$f":"\" \"","v":" "},"Fin"," "," ",46,{"$f":"\"  \"","v":"  "},{"$f":"\"  \"","v":"  "},"  ","  ","  ",null,null,null,49,2,3,1,5,4,null,49,3,1,2,5,4]
[null,null,null,null,null,null,null,null,null,null,null,null,null,null,null,null,null,null,null,null,47,"Fin"," "," "," "," ",47,{"$f":"\"  \"","v":"  "},"  ","  ","  ","  ",null,null,null,50,2,3,5,1,4,null,50,4,1,2,5,3]
[null,null,null,null,null,null,null,null,null,null,null,null,null,null,null,null,null,null,null,null,48,{"$f":"\" \"","v":" "}," "," ","Fin"," ",48,"  ","  ","  ","  ","  ",null,null,null,51,2,1,4,5,3,null,51,2,1,5,3,4]
[null,null,null,null,null,null,null,null,null,null,null,null,null,null,null,null,null,null,null,null,49," "," "," "," ","Fin",49,"  ","  ","  ","  ","  ",null,null,null,52,3,2,5,4,1,null,52,5,2,1,4,3]
[null,null,null,null,null,null,null,null,null,null,null,null,null,null,null,null,null,null,null,null,50," ","Fin"," "," "," ",50,"  ","  ","  ","  ","  ",null,null,null,53,2,3,4,1,5,null,53,4,1,2,3,5]
[null,null,null,null,null,null,null,null,null,null,null,null,null,null,null,null,null,null,null,null,null,null,null,null,null,null,null,null,null,null,null,null,null,null,null,54,4,5,1,3,2,null,54,3,5,4,1,2]
[null,null,null,null,null,null,null,null,null,null,null,null,null,null,null,null,null,null,null,null,null,null,null,null,null,null,null,null,null,null,null,null,null,null,null,55,4,1,5,2,3,null,55,2,4,5,1,3]

{"sheet":"Réponse à écrire","index":1,"n_rows":62,"n_cols":48,"rows_kept":62,"cut":false,"hidden":false,"merged":[[24,4,24,12],[10,35,10,40],[10,42,10,47],[20,4,20,12],[21,4,21,12],[22,4,22,12],[23,4,23,12],[19,4,19,12],[16,4,16,12],[17,4,17,12],[10,49,10,51],[18,4,18,12],[2,2,2,14],[6,21,6,25],[6,27,6,31],[15,4,15,12]]}
[]
[]
[null,null,"Jean-Louis 2"]
[]
[null,null,"No",2,null,null,null,null,null,null,null,null,null,null,null,{"$f":"IF(HOUR(NOW())+D5>55,HOUR(NOW())+D5-54,HOUR(NOW())+D5)","v":25}]
[]
[null,null,null,null,null,null,null,null,null,null,null,null,null,null,null,null,null,null,null,null,null,"Mots",null,null,null,null,null,"Définitions"]
[null,null,null,null,null,null,null,null,null,null,null,null,null,null,null,null,null,null,null,null,null,1,2,3,4,5,null,1,2,3,4,5]
[]
[null,null,null,null,{"$f":"VLOOKUP($D$5,$U$11:$Z$60,VLOOKUP($P$5,$AJ$12:$AO$62,2)+1)","v":"Vert"},null,{"$f":"VLOOKUP($D$5,$U$11:$Z$60,VLOOKUP($P$5,$AJ$12:$AO$62,3)+1)","v":"Verre"},null,{"$f":"VLOOKUP($D$5,$U$11:$Z$60,VLOOKUP($P$5,$AJ$12:$AO$62,4)+1)","v":"Vers"},null,{"$f":"VLOOKUP($D$5,$U$11:$Z$60,VLOOKUP($P$5,$AJ$12:$AO$62,5)+1)","v":"Ver"},null,{"$f":"VLOOKUP($D$5,$U$11:$Z$60,VLOOKUP($P$5,$AJ$12:$AO$62,6)+1)","v":"Vair"}]
[null,null,null,null,null,null,null,null,null,null,null,null,null,null,null,null,null,null,null,null,1,"Bonvillars","La Côte","Lavaux","Dézaley","Chablais",1,"Joli fruité, goût de pomme verte, sec, léger et bien équilibré","Arôme de pamplemousse, vineux, friand avec une légère amertume","Elégant avec un fruité assez discret, sec et amertume finale","Très fin et souple, encore fermé, gras en bouche","Très floral au nez, fin et flatteur en bouche, rond et bien ouvert",null,null,null,"Tirage",null,null,null,null,null,null,"juste"]
[null,null,null,null,null,null,null,null,null,null,null,null,null,null,null,null,null,null,null,null,2,"Ver","Vert","Verre","Vair","Vers",2,"Animal invertébré de forme allongée, au corps mou, dépourvu de membres","Couleur","Matière transparente à base de silicates","Fourrure blanche et grise de certains écureuils","Assemblages de mots mesurés ou cadencés selon certaines règles",null,null,null,1,1,2,3,4,5,null,1,1,2,3,4,5]
[null,null,null,null,1,null,2,null,3,null,4,null,5,null,null,null,null,null,null,null,3,"Pré","Prêt","Prêt","Près","Pré",3,"Terre où l'on récolte du fourrage","Action par laquelle on transmet à quelqu'un la jouissance d'une chose","Qui est en état de faire quelque chose","A peu de distance","Préfixe exprimant une idée d'antériorité",null,null,null,2,2,1,3,5,4,null,2,2,1,3,5,4]
[null,null,null,null,null,null,null,null,null,null,null,null,null,null,null,null,null,null,null,null,4,"Pair","Paire","Pers","Perd","Père",4,"Egal d'une personne - Grand vassal du roi","Groupe de deux objets semblables destinés à un emploi simultané","De couleur intermédiaire entre le vert et le bleu","Troisième personne du présent de l'indicatif d'un verbe","Celui qui a un ou plusieurs enfants",null,null,null,3,5,4,1,2,3,null,3,3,4,5,2,1]
[null,null,null,null,null,null,null,null,null,null,null,null,null,null,"mot :",null,null,null,null,null,5,"Cour","Court","Cours","Courre","Coure",5,"Espace découvert et clos faisant partie d'un ensemble de bâtiments","Terrain où l'on joue au tennis","Mouvement naturel de l'eau qui s'écoule","Poursuivre un gibier","Subjonctif présent, première personne singulier du verbe courir",null,null,null,4,2,3,4,1,5,null,4,4,1,2,3,5]
[null,null,"Définition 1",null,{"$f":"VLOOKUP($D$5,$AA$11:$AF$60,VLOOKUP($P$5,$AJ$12:$AO$62,2)+1)","v":"Couleur"},null,null,null,null,null,null,null,null,null,null,null,{"$f":"IF(O16=E10,\"v\",\"x\")","v":"x"},null,null,null,6,"Penne","Pêne","Peine","Panser","Penser",6,"Plume longue et résistante des ailes et de la queue des oiseaux","Verrou, partie d'une serrure","Châtiment, punition, souffrance","Nettoyer une plaie et la protéger","Avoir une opinion, réfléchir",null,null,null,5,3,4,2,5,1,null,5,5,3,1,2,4]
[null,null,"Définition 2",null,{"$f":"VLOOKUP($D$5,$AA$11:$AF$60,VLOOKUP($P$5,$AJ$12:$AO$62,3)+1)","v":"Matière transparente à base de silicates"},null,null,null,null,null,null,null,null,null,null,null,{"$f":"IF(O17=G10,\"v\",\"x\")","v":"x"},null,null,null,7,"Accord","Accort","Accore","Accords","A corps perdu",7,"Union des esprits et des sentiments - Union harmonieuse de sons","Enjoué, gracieux et sans gaucherie","Pièce de bois dont on étaye un navire en construction","Conventions entre Etats ou particuliers","Avec une impétuosité téméraire",null,null,null,7,4,2,5,3,1,null,7,5,2,4,1,3]
[null,null,"Définition 3",null,{"$f":"VLOOKUP($D$5,$AA$11:$AF$60,VLOOKUP($P$5,$AJ$12:$AO$62,4)+1)","v":"Assemblages de mots mesurés ou cadencés selon certaines règles"},null,null,null,null,null,null,null,null,null,null,null,{"$f":"IF(O18=I10,\"v\",\"x\")","v":"x"},null,null,null,8,"Are","Art","Ars","Arrhes","Hart",8,"Unité de mesure valant un décamètre carré","Application d'un ensemble de connaissances  une réalisation pratique","Pli à la réunion de la poitrine et du membre antérieur du cheval","Ce qui est donné comme gage, comme avance sur l'exécution d'un marché","Lien de bois dont on lie les fagots - Corde qui servait à la pendaison",null,null,null,9,4,3,5,1,2,null,9,4,5,2,1,3]
[null,null,"Définition 4",null,{"$f":"VLOOKUP($D$5,$AA$11:$AF$60,VLOOKUP($P$5,$AJ$12:$AO$62,5)+1)","v":"Animal invertébré de forme allongée, au corps mou, dépourvu de membres"},null,null,null,null,null,null,null,null,null,null,null,{"$f":"IF(O19=K10,\"v\",\"x\")","v":"x"},null,null,null,9,"Sain","Saint","Seing","Sein","Ceins",9,"Dont l'organisme est en bon état","Essentiellement pur et parfait, en parlant de Dieu","Signature qui rend un acte valable","Partie antérieure de la poitrine humaine","Première personne du présent d'un verbe synonyme de \"entourer\"",null,null,null,11,3,5,4,2,1,null,11,5,4,1,3,2]
[null,null,"Définition 5",null,{"$f":"VLOOKUP($D$5,$AA$11:$AF$60,VLOOKUP($P$5,$AJ$12:$AO$62,6)+1)","v":"Fourrure blanche et grise de certains écureuils"},null,null,null,null,null,null,null,null,null,null,null,{"$f":"IF(O20=M10,\"v\",\"x\")","v":"x"},null,null,null,10,"Cent","Cens","Sens","Sang","Sans",10,"Nombre qui vaut 10 x 10","Redevance en argent payée au seigneur, au Moyen Age","Faculté de percevoir l'impression des objets extérieurs","Liquide rouge qui circule dans les artères et les veines","Marque l'absence, la privation, l'exclusion",null,null,null,13,5,2,1,4,3,null,13,3,2,5,4,1]
[null,null,null,null,null,null,null,null,null,null,null,null,null,null,null,null,null,null,null,null,11,"Serf","Serres","Serre","Sers","Cerf",11,"Qui vivait attaché au seigneur et à sa terre","Pieds armés de griffes des oiseaux de proie","Lieu clos et vitré où l'on abrite les végétaux","Première personne du présent du verbe servir","Mammifère ruminant dont la tête du mâle porte des bois",null,null,null,14,4,1,5,3,2,null,14,2,5,4,1,3]
[null,null,null,null,null,null,null,null,null,null,null,null,null,null,null,null,{"$f":"IF(COUNTIF(Q16:Q20,\"v\")=5,\"Diplôme\",\"\")","v":""},null,null,null,12,"Saut","Sceau","Seaux","Sot","Seau",12,"Mouvement brusque d'extension par lequel le corps se projette en haut","Cachet gravé dont on fait des empreintes avec de la cire sur des lettres","Récipients de bois ou de métal, munis d'une anse","Personne sans esprit, sans jugement","Contenu d'un récipient",null,null,null,15,2,5,1,4,3,null,15,3,1,5,4,2]
[null,null,null,null,null,null,null,null,null,null,null,null,null,null,null,null,null,null,null,null,13,"Aire","Air","Hère","Erre","Ere",13,"Superficie d'une figure géométrique","Fluide gazeux enveloppant la Terre","Jeune cerf d'un an","Manière de marcher, allure","Epoque  à partir de laquelle on commence à compter les années",null,null,null,16,4,2,3,5,1,null,16,5,2,3,1,4]
[null,null,null,null,null,null,null,null,null,null,null,null,null,null,null,null,null,null,null,null,14,"Hère","Erres","Haire","Ers","Air",14,"Homme sans mérite, sans fortune","Voies du cerf - Tenir la même conduite que…","Vêtement de crin porté sur la peau pour se mortifier","Légumineuse fourragère du type lentille","Suite de sons musicaux",null,null,null,17,1,4,3,5,2,null,17,1,5,3,2,4]
[null,null,null,null,null,null,null,null,null,null,null,null,null,null,null,null,null,null,null,null,15,"Dais","Dé","Des","Dès","Dey",15,"Baldaquin au-dessus d'un autel, d'un trône","Petit cube qui sert à jouer","Article indéfini, pluriel de ou de une","Préposition marquant le temps ou le lieu","Chef de la milice turque",null,null,null,18,3,5,4,1,2,null,18,4,5,1,3,2]
[null,null,null,null,null,null,null,null,null,null,null,null,null,null,null,null,null,null,null,null,16,"Jet","Geai","Jais","J'ai","Gai",16,"Un lancé - Une émission vive d'un liquide","Passereaux insectivore","Pierre noire et brillante dont on fait des bijoux","Première personne du singulier du présent d'un auxiliaire","Qui marque ou inspire la gaieté",null,null,null,19,4,1,3,2,5,null,19,2,4,3,1,5]
[null,null,null,null,null,null,null,null,null,null,null,null,null,null,null,null,null,null,null,null,17,"Quant","Quand","Cant","Kan","Camp",17,"Locution. Signifie \"pour ce qui est de, en ce qui concerne\"","A quel moment ?","Face la moins large d'une pièce de bois","Marché des caravanes dans l'Asie occidentale","Espace où une armée dresse ses tentes",null,null,null,20,1,5,2,3,4,null,20,1,3,4,5,2]
[null,null,null,null,null,null,null,null,null,null,null,null,null,null,null,null,null,null,null,null,18,"Bai","Baies","Bée","Baie","Bey",18,"Rouge brun, en parlant de la robe d'un cheval","Fruits charnus dépourvus de noyau","Ce dit d'une bouche ouverte d'étonnement","Large ouverture pratiquée dans un mur, servant de fenêtre","Chez les turcs, gouverneur de province",null,null,null,21,5,1,3,2,4,null,21,2,4,3,5,1]
[null,null,null,null,null,null,null,null,null,null,null,null,null,null,null,null,null,null,null,null,19,"Bayer","Baîller","Bailler","Bail","Baille",19,"Etre grand ouvert - distrait - ??? Aux corneilles","Faire une inspiration profonde suivie d'une expiration prolongée","Donner, remettre, fournir des fonds","Contrat par lequel une personne cède la jouissance d'un bien","Sorte de baquet, cuve de bois",null,null,null,22,3,5,4,2,1,null,22,5,4,1,3,2]
[null,null,null,null,null,null,null,null,null,null,null,null,null,null,null,null,null,null,null,null,20,"Laie","Laid","Lait","Lais","Lai",20,"Femelle du sanglier","Désagréable à voir","Liquide blanc et opaque pour nourrir les petits mammifères","Alluvions que les eaux abandonnent sur les rives","Petit poème en octosyllabes, narratif ou lyrique",null,null,null,23,1,4,5,3,2,null,23,1,5,4,2,3]
[null,null,null,null,null,null,null,null,null,null,null,null,null,null,null,null,null,null,null,null,21,"Laie","Laid","Lais","Lai","Lé",21,"Route étroite percée dans une forêt, une futaie","Contraire à la bienséance","Jeune arbre qu'on laisse quand on coupe le taillis","Qui n'est pas destiné aux ordres sacrés","Largeur d'une étoffe",null,null,null,24,2,3,1,5,4,null,24,3,1,2,5,4]
[null,null,null,null,null,null,null,null,null,null,null,null,null,null,null,null,null,null,null,null,22,"Autan","Autant","Otan","Otant","Au temps",22,"Vent d'est chaud et sec, parfois violent","Marque un rapport d'égalité","Organisation du Traité de l'Atlantique Nord","Retirant - Enlevant un vêtement","Jadis, autrefois",null,null,null,25,2,3,5,1,4,null,25,4,1,2,5,3]
[null,null,null,null,null,null,null,null,null,null,null,null,null,null,null,null,null,null,null,null,23,"Mite","Mitre","Mythe","Myrte","Myrrhe",23,"Insecte qui ronge le papier, la laine, la fourrure","Coiffure des évêques","Récit fabuleux destiné à expliquer des faits présents","Arbrisseau ornemental","Gomme-résine aromatique utilisée en parfumerie",null,null,null,26,2,1,4,5,3,null,26,2,1,5,3,4]
[null,null,null,null,null,null,null,null,null,null,null,null,null,null,null,null,null,null,null,null,24,"Frète","Frette","Frais","Frai","Fraye",24,"Je loue un véhicule","Cercle de métal ajusté autour d'un tube pour le renforcer","Dépenses occasionnées par quelque chose","Epoque de reproduction chez les poissons","Je fréquente des personnes louches",null,null,null,27,3,2,5,4,1,null,27,5,2,1,4,3]
[null,null,null,null,null,null,null,null,null,null,null,null,null,null,null,null,null,null,null,null,25,"Court","Coure","Cour","Cours","Cours",25,"De peu de longueur","Il faut que je marche très, très vite…","Dénomination de certains tribunaux importants","Ensemble de leçons sur un même sujet","Prix de vente d'une valeur en bourse,  d'une monnaie",null,null,null,28,2,3,4,1,5,null,28,4,1,2,3,5]
[null,null,null,null,null,null,null,null,null,null,null,null,null,null,null,null,null,null,null,null,26,"Cote","Côte","Cotte","Côtes","Quote-part",26,"Liste des prix des monnaies","Zone continentale en contact avec la mer","Pantalon de toile bleue portée par les ouvriers","Os allongés qui forment la cage thoracique","Part que chacun doit payer ou recevoir lors d'un partage",null,null,null,29,4,5,1,3,2,null,29,3,5,4,1,2]
[null,null,null,null,null,null,null,null,null,null,null,null,null,null,null,null,null,null,null,null,27,"Balai","Ballet","Balais","Palais","Palet",27,"Assemblage de crin au bout d'un bâton pour le nettoyage","Danse exécutée par plusieurs personnes sur un théâtre","Variété de rubis rose","Partie supérieure de la cavité buccale","Pierre plate avec laquelle on joue en la lançant près du but",null,null,null,30,4,1,5,2,3,null,30,2,4,5,1,3]
[null,null,null,null,null,null,null,null,null,null,null,null,null,null,null,null,null,null,null,null,28,"Fond","Fonds","Fonts","Font","Fonds",28,"Endroit le plus bas d'une chose creuse","Ensemble de biens immobiliers","Grand bassin qui contient l'eau du baptême","Verbe faire à la 3e personne du pluriel et au présent","Somme d'argent réservée à tel usage",null,null,null,31,2,1,3,5,4,null,31,2,1,3,5,4]
[null,null,null,null,null,null,null,null,null,null,null,null,null,null,null,null,null,null,null,null,29,"Pan","Pans","Paon","Pend","Pent",29,"Partie d'un vêtement, d'une étoffe","Parties verticales d'une construction","Gallinacé aux magnifiques couleurs","Fixer à un point élevé (3e personne du présent)","Préfixe tiré du grec, indiquant cinq",null,null,null,32,5,4,1,2,3,null,32,3,4,5,2,1]
[null,null,null,null,null,null,null,null,null,null,null,null,null,null,null,null,null,null,null,null,30,"Ris","Ri","Rît","Riz","Rit",30,"Glande comestible de la base du cou du veau","Participe passé du verbe rire","Subjonctif imparfait du verbe rire","Graminée cultivée dans l'eau pour ses graines alimentaires","Ordre prescrit des cérémonies d'une religion",null,null,null,33,2,3,4,1,5,null,33,4,1,2,3,5]
[null,null,null,null,null,null,null,null,null,null,null,null,null,null,null,null,null,null,null,null,31,"Chair","Chaire","Chère","Chers","Cher",31,"Substance fibreuse entre la peau et les os","Tribune du prédicateur dans une église","Ce qu'on sert à un repas","Personnes, être très aimés","Qui coûte beaucoup",null,null,null,34,3,4,2,5,1,null,34,5,3,1,2,4]
[null,null,null,null,null,null,null,null,null,null,null,null,null,null,null,null,null,null,null,null,32,"Van","Vent","Wan","Vanter","Venter",32,"Panier à anses servant à vanner le grain","Mouvement d'une masse d'air","Monnaie de la Corée","Faire l'éloge","Souffler",null,null,null,35,4,2,5,3,1,null,35,5,2,4,1,3]
[null,null,null,null,null,null,null,null,null,null,null,null,null,null,null,null,null,null,null,null,33,"Vin","Vingt","Vaincs","Vins","Vain",33,"Jus de raisin fermenté","2 x 10","Tu remportes un avantage décisif sur l'ennemi","Passé simple du verbe venir, 1er personne sing.","Sans résultat, frivole",null,null,null,36,4,3,5,1,2,null,36,4,5,2,1,3]
[null,null,null,null,null,null,null,null,null,null,null,null,null,null,null,null,null,null,null,null,34,"Rai","Raie","Ré","Rez","Rets",34,"Pièce reliant le moyeu d'une roue à la jante - Rayon de lumière","Ligne en creux - Poisson plat","Deuxième note de la gamme d'ut","Partie d'un immeuble qui est au niveau du terrain","Filets pour prendre des oiseaux, des poissons - Piège",null,null,null,37,3,5,4,2,1,null,37,5,4,1,3,2]
[null,null,null,null,null,null,null,null,null,null,null,null,null,null,null,null,null,null,null,null,35,"Vis","Visse","Vice","Vice-","Vis n.f.",35,"1ère personne de l'indicatif passé du verbe voir","Je ferme en tournant","Disposition à agir contre la morale","Indique une fonction de suppléant au titulaire","Tige cylindrique à tête aplatie",null,null,null,38,5,2,1,4,3,null,38,3,2,5,4,1]
[null,null,null,null,null,null,null,null,null,null,null,null,null,null,null,null,null,null,null,null,36,"Thon","Tond","Ton","Tonne","Ton",36,"Poisson marin","Il coupe à ras","Qualité sonore d'une voix","Unité de mesure valant 1000 kg","Qui est à toi",null,null,null,39,4,1,5,3,2,null,39,2,5,4,1,3]
[null,null,null,null,null,null,null,null,null,null,null,null,null,null,null,null,null,null,null,null,37,"Tête","Tète","Têt","Tette","Thète",37,"Partie supérieure de qqch.","Il suce le lait de la mamelle","Récipient en terre réfractaire utilisé en laboratoire","Bout de la mamelle des animaux","Manoeuvre au temps des grecs",null,null,null,40,2,5,1,4,3,null,40,3,1,5,4,2]
[null,null,null,null,null,null,null,null,null,null,null,null,null,null,null,null,null,null,null,null,38,"Trais","Très","Trait","Traits","Traite",38,"Je tire le lait des mamelles","Indique l'intensité absolue d'un adj., d'un adv.","Corde avec laquelle un animal attelé tire sa charge","Lignes tracées sur une surface quelconque","Etendue de chemin qu'on parcourt sans s'arrêter",null,null,null,41,4,2,3,5,1,null,41,5,2,3,1,4]
[null,null,null,null,null,null,null,null,null,null,null,null,null,null,null,null,null,null,null,null,39,"Thym","Tin","Tain","Teint","Teins",39,"Plante vivace utilisée comme aromate","Bois qui soutient un navire en construction","Amalgame utilisé dans la fabrication des glaces","Coloris du visage","J'imprègne d'une substance colorante",null,null,null,42,1,4,3,5,2,null,42,1,5,3,2,4]
[null,null,null,null,null,null,null,null,null,null,null,null,null,null,null,null,null,null,null,null,40,"Fors","For","Fort","Forts","Fore",40,"Hors, excepté","Tribunal","Qui a beaucoup de force","Ouvrages de fortification","Je perce avec un foret",null,null,null,43,3,5,4,1,2,null,43,4,5,1,3,2]
[null,null,null,null,null,null,null,null,null,null,null,null,null,null,null,null,null,null,null,null,41,"Foi","Fois","Foie","Foix","Foies",41,"Fait de croire quelqu'un","Multiplication d'une quantité","Organe contenu dans la partie supérieure droite de l’abdomen","Ville de France, chef-lieu du département de l’Ariège, sur l’Ariège","On les a quand on a peur",null,null,null,44,4,1,3,2,5,null,44,2,4,3,1,5]
[null,null,null,null,null,null,null,null,null,null,null,null,null,null,null,null,null,null,null,null,42,"Mai","Mais","Mes","Mets","Met",42,"Le cinquième mois  de l’année","Conjonction de coordination","Qui appartient ou est lié à moi","Aliment cuisiné","Troisième personne du singulier du verbe mettre au présent de l'indicatif",null,null,null,45,1,5,2,3,4,null,45,1,3,4,5,2]
[null,null,null,null,null,null,null,null,null,null,null,null,null,null,null,null,null,null,null,null,43,"Croit","Croix","Croîts","Croie","Croît",43,"Verbe croire à la troisième personne au présent  de l'indicatif","Instrument de supplice composé d’un poteau et d’une traverse de bois","Augmentations de la population d’un cheptel par les naissances annuelles","Verbe croire à la première personne au présent du subjonctif","Il grandit de façon naturelle",null,null,null,46,5,1,3,2,4,null,46,2,4,3,5,1]
[null,null,null,null,null,null,null,null,null,null,null,null,null,null,null,null,null,null,null,null,44,"Maire","Mère","Mer","Mér","Mehr",44,"Personne qui dirige l’administration d’une ville","Femme qui a mis au monde un ou des enfants","Immense étendue d’eau salée","Préfixe indiquant une division ","Mot allemand signifiant principalement « plus » ou « davantage » ",null,null,null,47,3,5,4,2,1,null,47,5,4,1,3,2]
[null,null,null,null,null,null,null,null,null,null,null,null,null,null,null,null,null,null,null,null,45,"Reine","Renne","Raine","Rêne","Rennes",45,"Souveraine. Femme d’un roi","Mammifère ruminant de grande taille, au museau velu","Je fais des rainures","Courroie fixée au mors du cheval et servant à le diriger","Ville de France de la région de la Bretagne",null,null,null,48,1,4,5,3,2,null,48,1,5,4,2,3]
[null,null,null,null,null,null,null,null,null,null,null,null,null,null,null,null,null,null,null,null,46,null,null,null,null,null,46,null,null,null,null,null,null,null,null,49,2,3,1,5,4,null,49,3,1,2,5,4]
[null,null,null,null,null,null,null,null,null,null,null,null,null,null,null,null,null,null,null,null,47,null,null,null,null,null,47,null,null,null,null,null,null,null,null,50,2,3,5,1,4,null,50,4,1,2,5,3]
[null,null,null,null,null,null,null,null,null,null,null,null,null,null,null,null,null,null,null,null,48,null,null,null,null,null,48,null,null,null,null,null,null,null,null,51,2,1,4,5,3,null,51,2,1,5,3,4]
[null,null,null,null,null,null,null,null,null,null,null,null,null,null,null,null,null,null,null,null,49,null,null,null,null,null,49,null,null,null,null,null,null,null,null,52,3,2,5,4,1,null,52,5,2,1,4,3]
[null,null,null,null,null,null,null,null,null,null,null,null,null,null,null,null,null,null,null,null,50,null,null,null,null,null,50,null,null,null,null,null,null,null,null,53,2,3,4,1,5,null,53,4,1,2,3,5]
[null,null,null,null,null,null,null,null,null,null,null,null,null,null,null,null,null,null,null,null,null,null,null,null,null,null,null,null,null,null,null,null,null,null,null,54,4,5,1,3,2,null,54,3,5,4,1,2]
[null,null,null,null,null,null,null,null,null,null,null,null,null,null,null,null,null,null,null,null,null,null,null,null,null,null,null,null,null,null,null,null,null,null,null,55,4,1,5,2,3,null,55,2,4,5,1,3]